[Event "Titled Tuesday Blitz January 17 Early 2023"]
[White "Leiva, Gianmarco"]
[Black "Abdilkhair, Abilmansur"]
[WhiteFideId "3804399"]
[BlackFideId "13716417"]
[WhiteElo "2392"]
[BlackElo "2268"]
[Result "1-0"]
[Round "01"]
[TimeControl "180+2"]
[Date "2023.01.17"]
[WhiteClock "0:00:04"]
[BlackClock "0:00:33"]

1. e4 {[%clk 0:02:10]}  e5 {[%clk 0:02:57]} 2. Nf3 {[%clk 0:02:08]}  Nc6 {[%clk 0:02:57]} 3. Bc4 {[%clk 0:02:06]}  Be7 {[%clk 0:02:57]} 4. Bf1 {[%clk 0:02:04]}  Nf6 {[%clk 0:02:57]} 5. Nc3 {[%clk 0:01:55]}  O-O {[%clk 0:02:57]} 6. Bb5 {[%clk 0:01:48]}  Nd4 {[%clk 0:02:55]} 7. Ba4 {[%clk 0:01:40]}  d5 {[%clk 0:02:51]} 8. d3 {[%clk 0:01:37]}  Bg4 {[%clk 0:02:43]} 9. h3 {[%clk 0:01:31]}  Nxf3+ {[%clk 0:02:28]} 10. gxf3 {[%clk 0:01:32]}  Bh5 {[%clk 0:02:29]} 11. Bg5 {[%clk 0:01:30]}  d4 {[%clk 0:02:24]} 12. Nb1 {[%clk 0:01:30]}  Nd7 {[%clk 0:02:09]} 13. Bxe7 {[%clk 0:01:28]}  Qxe7 {[%clk 0:02:10]} 14. Nd2 {[%clk 0:01:20]}  Nc5 {[%clk 0:02:08]} 15. Bb5 {[%clk 0:01:20]}  c6 {[%clk 0:02:05]} 16. Bc4 {[%clk 0:01:20]}  b5 {[%clk 0:02:03]} 17. Bb3 {[%clk 0:01:20]}  a5 {[%clk 0:02:02]} 18. a3 {[%clk 0:01:16]}  Nxb3 {[%clk 0:02:02]} 19. cxb3 {[%clk 0:01:17]}  f5 {[%clk 0:02:02]} 20. Qe2 {[%clk 0:01:11]}  Rf6 {[%clk 0:01:55]} 21. Rg1 {[%clk 0:01:04]}  Raf8 {[%clk 0:01:55]} 22. Rg5 {[%clk 0:01:04]}  Bf7 {[%clk 0:01:36]} 23. O-O-O {[%clk 0:00:53]}  h6 {[%clk 0:01:35]} 24. Rg3 {[%clk 0:00:48]}  a4 {[%clk 0:01:34]} 25. Rdg1 {[%clk 0:00:45]}  Bxb3 {[%clk 0:01:26]} 26. Nxb3 {[%clk 0:00:35]}  axb3 {[%clk 0:01:27]} 27. Qd1 {[%clk 0:00:31]}  fxe4 {[%clk 0:01:21]} 28. Qxb3+ {[%clk 0:00:22]}  Kh8 {[%clk 0:01:21]} 29. fxe4 {[%clk 0:00:15]}  R8f7 {[%clk 0:01:18]} 30. Kb1 {[%clk 0:00:10]}  Rxf2 {[%clk 0:01:17]} 31. Ka2 {[%clk 0:00:10]}  Qc5 {[%clk 0:01:10]} 32. Rg6 {[%clk 0:00:07]}  Qc2 {[%clk 0:01:07]} 33. Qb4 {[%clk 0:00:04]}  Qxd3 {[%clk 0:00:45]} 34. Rxc6 {[%clk 0:00:04]}  Qxe4 {[%clk 0:00:45]} 35. Qd6 {[%clk 0:00:04]}  Qe2 {[%clk 0:00:38]} 36. Rc8+ {[%clk 0:00:03]}  Rf8 {[%clk 0:00:32]} 37. Rxf8+ {[%clk 0:00:03]}  Rxf8 {[%clk 0:00:32]} 38. Qxf8+ {[%clk 0:00:03]}  Kh7 {[%clk 0:00:33]} 39. Qxg7# {[%clk 0:00:04]} 1-0


[Site "https://www.chess.com"]

[Event "Titled Tuesday Blitz January 17 Early 2023"]
[White "TacticalSam94"]
[Black "Tasev, Dejan"]
[BlackFideId "936618"]
[WhiteElo "2382"]
[BlackElo "2205"]
[Result "0-1"]
[Round "01"]
[TimeControl "180+2"]
[Date "2023.01.17"]
[WhiteClock "0:00:21"]
[BlackClock "0:00:25"]

1. e4 {[%clk 0:03:00]}  c6 {[%clk 0:02:59]} 2. d4 {[%clk 0:02:59]}  d5 {[%clk 0:03:00]} 3. exd5 {[%clk 0:02:56]}  cxd5 {[%clk 0:03:01]} 4. Bd3 {[%clk 0:02:56]}  Nc6 {[%clk 0:03:01]} 5. c3 {[%clk 0:02:57]}  g6 {[%clk 0:03:01]} 6. Nf3 {[%clk 0:02:57]}  Bf5 {[%clk 0:03:00]} 7. Be2 {[%clk 0:02:56]}  Bxb1 {[%clk 0:02:59]} 8. Rxb1 {[%clk 0:02:55]}  Bg7 {[%clk 0:02:59]} 9. O-O {[%clk 0:02:55]}  Nf6 {[%clk 0:02:59]} 10. Bf4 {[%clk 0:02:54]}  O-O {[%clk 0:02:59]} 11. h3 {[%clk 0:02:52]}  e6 {[%clk 0:02:59]} 12. Re1 {[%clk 0:02:47]}  a6 {[%clk 0:02:56]} 13. a4 {[%clk 0:02:47]}  Ne8 {[%clk 0:02:48]} 14. Bd3 {[%clk 0:02:46]}  Nd6 {[%clk 0:02:48]} 15. Qd2 {[%clk 0:02:33]}  Rc8 {[%clk 0:02:46]} 16. Bh6 {[%clk 0:02:31]}  Na5 {[%clk 0:02:31]} 17. Ne5 {[%clk 0:02:26]}  Nac4 {[%clk 0:02:28]} 18. Bxc4 {[%clk 0:02:25]}  Nxc4 {[%clk 0:02:27]} 19. Nxc4 {[%clk 0:02:24]}  Rxc4 {[%clk 0:02:26]} 20. Bxg7 {[%clk 0:02:20]}  Kxg7 {[%clk 0:02:26]} 21. b3 {[%clk 0:02:20]}  Rc6 {[%clk 0:02:25]} 22. Re3 {[%clk 0:02:20]}  Qc7 {[%clk 0:02:25]} 23. Rbe1 {[%clk 0:02:21]}  Rc8 {[%clk 0:02:25]} 24. Rc1 {[%clk 0:02:15]}  b5 {[%clk 0:02:24]} 25. axb5 {[%clk 0:02:15]}  axb5 {[%clk 0:02:24]} 26. b4 {[%clk 0:02:14]}  Rc4 {[%clk 0:02:24]} 27. h4 {[%clk 0:02:13]}  Rxb4 {[%clk 0:02:13]} 28. h5 {[%clk 0:02:12]}  Rc4 {[%clk 0:02:10]} 29. Rh3 {[%clk 0:02:11]}  b4 {[%clk 0:01:51]} 30. hxg6 {[%clk 0:02:04]}  fxg6 {[%clk 0:01:50]} 31. Qh6+ {[%clk 0:01:48]}  Kg8 {[%clk 0:01:47]} 32. Qe3 {[%clk 0:01:49]}  Qd6 {[%clk 0:01:40]} 33. Qh6 {[%clk 0:01:34]}  Qd7 {[%clk 0:01:34]} 34. Re1 {[%clk 0:01:10]}  bxc3 {[%clk 0:01:25]} 35. Rxe6 {[%clk 0:01:08]}  c2 {[%clk 0:01:07]} 36. Rxg6+ {[%clk 0:01:02]}  Kh8 {[%clk 0:01:05]} 37. Rg5 {[%clk 0:00:30]}  c1=Q+ {[%clk 0:01:04]} 38. Kh2 {[%clk 0:00:31]}  Qf4+ {[%clk 0:00:55]} 39. Rhg3 {[%clk 0:00:26]}  R4c6 {[%clk 0:00:30]} 40. Rg8+ {[%clk 0:00:20]}  Rxg8 {[%clk 0:00:27]} 41. Qxf4 {[%clk 0:00:20]}  Rxg3 {[%clk 0:00:25]} 42. Qxg3 {[%clk 0:00:21]}  Qd6 {[%clk 0:00:25]} 0-1


[Site "https://www.chess.com"]

[Event "Titled Tuesday Blitz January 17 Early 2023"]
[White "Kodinets, Konstantin L."]
[Black "Zampronha, Wladimir Camilo"]
[WhiteFideId "4122011"]
[BlackFideId "2103087"]
[WhiteElo "2409"]
[BlackElo "2176"]
[Result "1-0"]
[Round "01"]
[TimeControl "180+2"]
[Date "2023.01.17"]
[WhiteClock "0:00:36"]
[BlackClock "0:00:36"]

1. d4 {[%clk 0:02:14]}  Nf6 {[%clk 0:02:59]} 2. Nf3 {[%clk 0:02:13]}  e6 {[%clk 0:03:00]} 3. Bg5 {[%clk 0:02:12]}  d5 {[%clk 0:03:01]} 4. Nbd2 {[%clk 0:02:12]}  Be7 {[%clk 0:03:01]} 5. e3 {[%clk 0:02:12]}  O-O {[%clk 0:03:02]} 6. Bd3 {[%clk 0:02:12]}  Nbd7 {[%clk 0:02:59]} 7. c3 {[%clk 0:02:12]}  b6 {[%clk 0:02:56]} 8. O-O {[%clk 0:02:10]}  Bb7 {[%clk 0:02:57]} 9. Qe2 {[%clk 0:02:09]}  Ne4 {[%clk 0:02:51]} 10. Bxe7 {[%clk 0:02:07]}  Qxe7 {[%clk 0:02:52]} 11. Rfd1 {[%clk 0:02:06]}  f5 {[%clk 0:02:48]} 12. Ne5 {[%clk 0:02:04]}  Nxe5 {[%clk 0:02:46]} 13. dxe5 {[%clk 0:02:05]}  c5 {[%clk 0:02:36]} 14. f4 {[%clk 0:02:02]}  Kh8 {[%clk 0:02:21]} 15. Nf3 {[%clk 0:02:00]}  Rac8 {[%clk 0:02:13]} 16. a3 {[%clk 0:01:56]}  Rfd8 {[%clk 0:02:06]} 17. Rac1 {[%clk 0:01:55]}  h6 {[%clk 0:01:57]} 18. h4 {[%clk 0:01:51]}  Qe8 {[%clk 0:01:50]} 19. Nh2 {[%clk 0:01:44]}  Kh7 {[%clk 0:01:48]} 20. g4 {[%clk 0:01:41]}  Qe7 {[%clk 0:01:46]} 21. g5 {[%clk 0:01:40]}  hxg5 {[%clk 0:01:44]} 22. Qh5+ {[%clk 0:01:37]}  Kg8 {[%clk 0:01:43]} 23. hxg5 {[%clk 0:01:36]}  Kf8 {[%clk 0:01:14]} 24. g6 {[%clk 0:01:31]}  Ke8 {[%clk 0:01:14]} 25. Nf3 {[%clk 0:01:25]}  Kd7 {[%clk 0:01:11]} 26. Bxe4 {[%clk 0:01:16]}  fxe4 {[%clk 0:01:10]} 27. Ng5 {[%clk 0:01:16]}  Kc7 {[%clk 0:01:10]} 28. Qg4 {[%clk 0:01:08]}  Re8 {[%clk 0:01:11]} 29. Kf2 {[%clk 0:01:07]}  Kb8 {[%clk 0:01:09]} 30. Rh1 {[%clk 0:01:07]}  Rcd8 {[%clk 0:01:09]} 31. Rh7 {[%clk 0:01:07]}  Bc8 {[%clk 0:01:09]} 32. Nf7 {[%clk 0:01:05]}  Rd7 {[%clk 0:01:07]} 33. Rxg7 {[%clk 0:01:05]}  Rf8 {[%clk 0:01:00]} 34. Rh1 {[%clk 0:00:59]}  Rc7 {[%clk 0:00:51]} 35. Qh4 {[%clk 0:00:59]}  Qe8 {[%clk 0:00:51]} 36. Nd6 {[%clk 0:00:50]}  Qa4 {[%clk 0:00:51]} 37. Rxc7 {[%clk 0:00:49]}  Qc2+ {[%clk 0:00:50]} 38. Kg3 {[%clk 0:00:48]}  Kxc7 {[%clk 0:00:48]} 39. Qe7+ {[%clk 0:00:48]}  Bd7 {[%clk 0:00:44]} 40. Qxf8 {[%clk 0:00:48]}  Qe2 {[%clk 0:00:45]} 41. Kh4 {[%clk 0:00:41]}  Qg2 {[%clk 0:00:41]} 42. Rh3 {[%clk 0:00:39]}  Qf2+ {[%clk 0:00:37]} 43. Kg4 {[%clk 0:00:37]}  Qg2+ {[%clk 0:00:38]} 44. Rg3 {[%clk 0:00:37]}  Qe2+ {[%clk 0:00:38]} 45. Kg5 {[%clk 0:00:37]}  Qf2 {[%clk 0:00:37]} 46. Rg4 {[%clk 0:00:35]}  Qxe3 {[%clk 0:00:36]} 47. g7 {[%clk 0:00:36]} 1-0


[Site "https://www.chess.com"]

[Event "Titled Tuesday Blitz January 17 Early 2023"]
[White "Bashirli, Saadat"]
[Black "Ismagilov, Damir"]
[WhiteFideId "13429990"]
[BlackFideId "34199982"]
[WhiteElo "1571"]
[BlackElo "2156"]
[Result "0-1"]
[Round "01"]
[TimeControl "180+2"]
[Date "2023.01.17"]
[WhiteClock "0:00:04"]
[BlackClock "0:00:16"]

1. e4 {[%clk 0:02:57]}  d6 {[%clk 0:02:57]} 2. d4 {[%clk 0:02:56]}  g6 {[%clk 0:02:57]} 3. Be2 {[%clk 0:02:52]}  Bg7 {[%clk 0:02:57]} 4. h4 {[%clk 0:02:49]}  Nf6 {[%clk 0:02:51]} 5. Nc3 {[%clk 0:02:48]}  e5 {[%clk 0:02:48]} 6. dxe5 {[%clk 0:02:45]}  dxe5 {[%clk 0:02:49]} 7. Qxd8+ {[%clk 0:02:45]}  Kxd8 {[%clk 0:02:50]} 8. Bg5 {[%clk 0:02:45]}  c6 {[%clk 0:02:43]} 9. O-O-O+ {[%clk 0:02:45]}  Kc7 {[%clk 0:02:38]} 10. Nf3 {[%clk 0:02:44]}  Nbd7 {[%clk 0:02:20]} 11. Bc4 {[%clk 0:02:32]}  Ng4 {[%clk 0:02:05]} 12. Rd2 {[%clk 0:02:23]}  f6 {[%clk 0:02:01]} 13. Be6 {[%clk 0:01:41]}  Nb6 {[%clk 0:01:44]} 14. Bxg4 {[%clk 0:01:18]}  Bxg4 {[%clk 0:01:42]} 15. Be3 {[%clk 0:01:18]}  Nc4 {[%clk 0:01:36]} 16. Rd3 {[%clk 0:01:17]}  Nxe3 {[%clk 0:01:22]} 17. fxe3 {[%clk 0:01:10]}  Rad8 {[%clk 0:01:23]} 18. Rhd1 {[%clk 0:01:08]}  Bh6 {[%clk 0:01:15]} 19. Kb1 {[%clk 0:01:01]}  b5 {[%clk 0:01:12]} 20. a3 {[%clk 0:00:48]}  Rxd3 {[%clk 0:01:09]} 21. Rxd3 {[%clk 0:00:47]}  Rd8 {[%clk 0:01:10]} 22. Rxd8 {[%clk 0:00:44]}  Kxd8 {[%clk 0:01:10]} 23. Nd1 {[%clk 0:00:44]}  Kc7 {[%clk 0:01:08]} 24. Kc1 {[%clk 0:00:40]}  c5 {[%clk 0:00:58]} 25. Kd2 {[%clk 0:00:40]}  b4 {[%clk 0:00:58]} 26. axb4 {[%clk 0:00:36]}  cxb4 {[%clk 0:00:59]} 27. Kd3 {[%clk 0:00:37]}  a5 {[%clk 0:00:55]} 28. Nf2 {[%clk 0:00:36]}  Bc8 {[%clk 0:00:54]} 29. Nd1 {[%clk 0:00:21]}  Ba6+ {[%clk 0:00:53]} 30. Kd2 {[%clk 0:00:21]}  Kc6 {[%clk 0:00:53]} 31. c3 {[%clk 0:00:19]}  b3 {[%clk 0:00:49]} 32. Ne1 {[%clk 0:00:16]}  a4 {[%clk 0:00:43]} 33. Nd3 {[%clk 0:00:16]}  Bf8 {[%clk 0:00:44]} 34. g4 {[%clk 0:00:11]}  Bd6 {[%clk 0:00:28]} 35. Nb4+ {[%clk 0:00:10]}  Bxb4 {[%clk 0:00:21]} 36. cxb4 {[%clk 0:00:11]}  Bc4 {[%clk 0:00:13]} 37. Nc3 {[%clk 0:00:07]}  h6 {[%clk 0:00:12]} 38. Nxa4 {[%clk 0:00:06]}  Be6 {[%clk 0:00:12]} 39. Nc3 {[%clk 0:00:05]}  Bxg4 {[%clk 0:00:12]} 40. b5+ {[%clk 0:00:05]}  Kc5 {[%clk 0:00:11]} 41. Nd5 {[%clk 0:00:05]}  f5 {[%clk 0:00:10]} 42. Nf6 {[%clk 0:00:03]}  Bf3 {[%clk 0:00:09]} 43. exf5 {[%clk 0:00:02]}  gxf5 {[%clk 0:00:10]} 44. Kc3 {[%clk 0:00:02]}  Kxb5 {[%clk 0:00:10]} 45. Kxb3 {[%clk 0:00:02]}  Kc5 {[%clk 0:00:11]} 46. Kc3 {[%clk 0:00:02]}  Kd6 {[%clk 0:00:11]} 47. Nh7 {[%clk 0:00:02]}  Ke7 {[%clk 0:00:11]} 48. Kd3 {[%clk 0:00:03]}  Kf7 {[%clk 0:00:11]} 49. h5 {[%clk 0:00:03]}  Kg7 {[%clk 0:00:11]} 50. b4 {[%clk 0:00:03]}  Kxh7 {[%clk 0:00:12]} 51. b5 {[%clk 0:00:03]}  Kg7 {[%clk 0:00:12]} 52. b6 {[%clk 0:00:04]}  Kf6 {[%clk 0:00:13]} 53. Kc4 {[%clk 0:00:02]}  Kg5 {[%clk 0:00:13]} 54. b7 {[%clk 0:00:02]}  Bxb7 {[%clk 0:00:13]} 55. Kc5 {[%clk 0:00:01]}  Be4 {[%clk 0:00:12]} 56. Kd6 {[%clk 0:00:02]}  Kxh5 {[%clk 0:00:13]} 57. Kxe5 {[%clk 0:00:03]}  Kg4 {[%clk 0:00:14]} 58. Kf6 {[%clk 0:00:03]}  h5 {[%clk 0:00:15]} 59. Kg6 {[%clk 0:00:04]}  h4 {[%clk 0:00:16]} 0-1


[Site "https://www.chess.com"]

[Event "Titled Tuesday Blitz January 17 Early 2023"]
[White "Dilmukhametov, Artur"]
[Black "Czernek, Tymon"]
[WhiteFideId "24179922"]
[BlackFideId "1199510"]
[WhiteElo "2276"]
[BlackElo "2314"]
[Result "0-1"]
[Round "01"]
[TimeControl "180+2"]
[Date "2023.01.17"]
[WhiteClock "0:00:15"]
[BlackClock "0:00:12"]

1. d4 {[%clk 0:03:00]}  d5 {[%clk 0:02:56]} 2. Nc3 {[%clk 0:03:00]}  Nf6 {[%clk 0:02:52]} 3. Bf4 {[%clk 0:02:59]}  c6 {[%clk 0:02:52]} 4. e3 {[%clk 0:02:57]}  e6 {[%clk 0:02:44]} 5. Bd3 {[%clk 0:02:56]}  Bd6 {[%clk 0:02:44]} 6. Qf3 {[%clk 0:02:54]}  Bxf4 {[%clk 0:02:42]} 7. Qxf4 {[%clk 0:02:54]}  Nbd7 {[%clk 0:02:42]} 8. Nf3 {[%clk 0:02:53]}  O-O {[%clk 0:02:40]} 9. O-O-O {[%clk 0:02:43]}  b5 {[%clk 0:02:31]} 10. Ng5 {[%clk 0:02:43]}  h6 {[%clk 0:02:29]} 11. Nh3 {[%clk 0:02:40]}  a5 {[%clk 0:02:23]} 12. g4 {[%clk 0:02:39]}  a4 {[%clk 0:02:22]} 13. g5 {[%clk 0:02:39]}  hxg5 {[%clk 0:02:20]} 14. Nxg5 {[%clk 0:02:37]}  b4 {[%clk 0:02:16]} 15. Ne2 {[%clk 0:02:36]}  b3 {[%clk 0:02:16]} 16. a3 {[%clk 0:02:29]}  Ba6 {[%clk 0:02:15]} 17. c3 {[%clk 0:02:28]}  Bxd3 {[%clk 0:02:14]} 18. Rxd3 {[%clk 0:02:27]}  c5 {[%clk 0:02:09]} 19. h4 {[%clk 0:02:25]}  Qe7 {[%clk 0:01:58]} 20. h5 {[%clk 0:02:21]}  e5 {[%clk 0:01:56]} 21. Qh4 {[%clk 0:02:18]}  exd4 {[%clk 0:01:47]} 22. h6 {[%clk 0:02:04]}  g6 {[%clk 0:01:46]} 23. h7+ {[%clk 0:01:51]}  Kh8 {[%clk 0:01:45]} 24. Qg3 {[%clk 0:01:13]}  dxc3 {[%clk 0:01:36]} 25. Nxc3 {[%clk 0:01:11]}  Ne5 {[%clk 0:01:23]} 26. Rd2 {[%clk 0:01:01]}  Rad8 {[%clk 0:01:20]} 27. Rhd1 {[%clk 0:00:57]}  d4 {[%clk 0:01:12]} 28. exd4 {[%clk 0:00:56]}  cxd4 {[%clk 0:01:13]} 29. Rxd4 {[%clk 0:00:48]}  Rxd4 {[%clk 0:01:14]} 30. Rxd4 {[%clk 0:00:48]}  Nc6 {[%clk 0:01:02]} 31. Rxa4 {[%clk 0:00:45]}  Qe1+ {[%clk 0:00:30]} 32. Nd1 {[%clk 0:00:43]}  Na5 {[%clk 0:00:12]} 33. Rf4 {[%clk 0:00:37]}  Rc8+ {[%clk 0:00:11]} 34. Qc3 {[%clk 0:00:22]}  Rxc3+ {[%clk 0:00:12]} 35. bxc3 {[%clk 0:00:22]}  Qe2 {[%clk 0:00:12]} 36. Ne3 {[%clk 0:00:17]}  b2+ {[%clk 0:00:12]} 37. Kb1 {[%clk 0:00:15]}  Qd2 {[%clk 0:00:12]} 0-1


[Site "https://www.chess.com"]

[Event "Titled Tuesday Blitz January 17 Early 2023"]
[White "Vaglio Munoz, Jaime"]
[Black "Malyi, Viacheslav"]
[WhiteFideId "6500145"]
[BlackFideId "14123983"]
[WhiteElo "2174"]
[BlackElo "2391"]
[Result "1-0"]
[Round "01"]
[TimeControl "180+2"]
[Date "2023.01.17"]
[WhiteClock "0:01:03"]
[BlackClock "0:00:20"]

1. d4 {[%clk 0:02:58]}  Nf6 {[%clk 0:02:58]} 2. c4 {[%clk 0:02:57]}  e6 {[%clk 0:02:59]} 3. a3 {[%clk 0:02:55]}  d5 {[%clk 0:02:59]} 4. b4 {[%clk 0:02:51]}  Be7 {[%clk 0:02:58]} 5. Bb2 {[%clk 0:02:50]}  a5 {[%clk 0:02:57]} 6. b5 {[%clk 0:02:48]}  O-O {[%clk 0:02:57]} 7. e3 {[%clk 0:02:47]}  c5 {[%clk 0:02:57]} 8. bxc6 {[%clk 0:02:45]}  bxc6 {[%clk 0:02:57]} 9. Nf3 {[%clk 0:02:44]}  c5 {[%clk 0:02:54]} 10. dxc5 {[%clk 0:02:43]}  Bxc5 {[%clk 0:02:53]} 11. Nbd2 {[%clk 0:02:43]}  Nc6 {[%clk 0:02:50]} 12. cxd5 {[%clk 0:02:42]}  exd5 {[%clk 0:02:44]} 13. Bb5 {[%clk 0:02:41]}  Qb6 {[%clk 0:02:42]} 14. a4 {[%clk 0:02:21]}  Ba6 {[%clk 0:02:17]} 15. Bxf6 {[%clk 0:02:17]}  gxf6 {[%clk 0:02:17]} 16. Rb1 {[%clk 0:02:09]}  Nb4 {[%clk 0:02:13]} 17. Qe2 {[%clk 0:02:01]}  d4 {[%clk 0:02:03]} 18. O-O {[%clk 0:01:57]}  dxe3 {[%clk 0:02:02]} 19. fxe3 {[%clk 0:01:56]}  Bxe3+ {[%clk 0:02:02]} 20. Kh1 {[%clk 0:01:56]}  Bxb5 {[%clk 0:01:58]} 21. axb5 {[%clk 0:01:55]}  Rfe8 {[%clk 0:01:51]} 22. Qc4 {[%clk 0:01:49]}  Rad8 {[%clk 0:01:30]} 23. Qg4+ {[%clk 0:01:41]}  Kh8 {[%clk 0:01:28]} 24. Nc4 {[%clk 0:01:37]}  Qxb5 {[%clk 0:01:21]} 25. Nxa5 {[%clk 0:01:26]}  Qxa5 {[%clk 0:01:13]} 26. Rxb4 {[%clk 0:01:23]}  Qd5 {[%clk 0:00:53]} 27. h3 {[%clk 0:01:20]}  Qe6 {[%clk 0:00:49]} 28. Qh4 {[%clk 0:01:14]}  Rg8 {[%clk 0:00:39]} 29. Re1 {[%clk 0:01:13]}  Bg5 {[%clk 0:00:36]} 30. Qf2 {[%clk 0:01:10]}  Qd6 {[%clk 0:00:34]} 31. Rd4 {[%clk 0:01:07]}  Qc7 {[%clk 0:00:28]} 32. Nxg5 {[%clk 0:01:06]}  fxg5 {[%clk 0:00:21]} 33. Qf6+ {[%clk 0:01:04]}  Rg7 {[%clk 0:00:20]} 34. Rxd8+ {[%clk 0:01:03]} 1-0


[Site "https://www.chess.com"]

[Event "Titled Tuesday Blitz January 17 Early 2023"]
[White "Hamley, Ryan"]
[Black "Martin, Lewis"]
[WhiteFideId "30959497"]
[BlackFideId "410551"]
[WhiteElo "2092"]
[BlackElo "2135"]
[Result "1-0"]
[Round "01"]
[TimeControl "180+2"]
[Date "2023.01.17"]
[WhiteClock "0:01:30"]
[BlackClock "0:00:33"]

1. e4 {[%clk 0:02:59]}  c5 {[%clk 0:02:51]} 2. Nf3 {[%clk 0:02:58]}  d6 {[%clk 0:02:51]} 3. Bb5+ {[%clk 0:02:53]}  Bd7 {[%clk 0:02:48]} 4. Bxd7+ {[%clk 0:02:53]}  Nxd7 {[%clk 0:02:49]} 5. c3 {[%clk 0:02:53]}  Ngf6 {[%clk 0:02:47]} 6. Qe2 {[%clk 0:02:53]}  g6 {[%clk 0:02:45]} 7. O-O {[%clk 0:02:54]}  Bg7 {[%clk 0:02:45]} 8. d4 {[%clk 0:02:54]}  O-O {[%clk 0:02:30]} 9. e5 {[%clk 0:02:51]}  Ne8 {[%clk 0:02:28]} 10. e6 {[%clk 0:02:48]}  Ndf6 {[%clk 0:02:16]} 11. exf7+ {[%clk 0:02:48]}  Rxf7 {[%clk 0:02:12]} 12. Ng5 {[%clk 0:02:48]}  Rf8 {[%clk 0:02:04]} 13. Ne6 {[%clk 0:02:48]}  Qd7 {[%clk 0:02:04]} 14. Nxf8 {[%clk 0:02:48]}  Bxf8 {[%clk 0:02:03]} 15. Nd2 {[%clk 0:02:47]}  cxd4 {[%clk 0:02:02]} 16. cxd4 {[%clk 0:02:47]}  Nc7 {[%clk 0:02:01]} 17. Nf3 {[%clk 0:02:47]}  Re8 {[%clk 0:02:00]} 18. Bg5 {[%clk 0:02:45]}  Bg7 {[%clk 0:01:57]} 19. Rfe1 {[%clk 0:02:45]}  h6 {[%clk 0:01:46]} 20. Bh4 {[%clk 0:02:42]}  Nfd5 {[%clk 0:01:35]} 21. Rac1 {[%clk 0:02:37]}  Nf4 {[%clk 0:01:29]} 22. Qe4 {[%clk 0:02:37]}  g5 {[%clk 0:01:23]} 23. Bg3 {[%clk 0:02:37]}  Ncd5 {[%clk 0:01:19]} 24. h4 {[%clk 0:02:21]}  Bf6 {[%clk 0:01:13]} 25. hxg5 {[%clk 0:02:19]}  hxg5 {[%clk 0:01:14]} 26. Nh2 {[%clk 0:02:18]}  Kg7 {[%clk 0:01:04]} 27. Qf3 {[%clk 0:02:15]}  Bxd4 {[%clk 0:00:56]} 28. Rcd1 {[%clk 0:02:11]}  e5 {[%clk 0:00:55]} 29. Qg4 {[%clk 0:01:53]}  Qxg4 {[%clk 0:00:51]} 30. Nxg4 {[%clk 0:01:53]}  Rf8 {[%clk 0:00:48]} 31. Ne3 {[%clk 0:01:48]}  Nxe3 {[%clk 0:00:40]} 32. fxe3 {[%clk 0:01:46]}  Bc5 {[%clk 0:00:40]} 33. b4 {[%clk 0:01:35]}  Bb6 {[%clk 0:00:39]} 34. Rxd6 {[%clk 0:01:32]}  Nh5 {[%clk 0:00:35]} 35. Bxe5+ {[%clk 0:01:32]}  Kh7 {[%clk 0:00:34]} 36. Rd7+ {[%clk 0:01:31]}  Kg6 {[%clk 0:00:33]} 37. Bd4 {[%clk 0:01:30]} 1-0


[Site "https://www.chess.com"]

[Event "Titled Tuesday Blitz January 17 Early 2023"]
[White "Ciuffoletti, Paolo"]
[Black "UnknownMagician"]
[WhiteFideId "807630"]
[WhiteElo "2106"]
[BlackElo "2637"]
[Result "0-1"]
[Round "01"]
[TimeControl "180+2"]
[Date "2023.01.17"]
[WhiteClock "0:00:14"]
[BlackClock "0:02:01"]

1. e4 {[%clk 0:02:59]}  c6 {[%clk 0:02:52]} 2. d4 {[%clk 0:02:58]}  d5 {[%clk 0:02:52]} 3. exd5 {[%clk 0:02:58]}  cxd5 {[%clk 0:02:53]} 4. c4 {[%clk 0:02:58]}  Nf6 {[%clk 0:02:52]} 5. Nc3 {[%clk 0:02:58]}  Nc6 {[%clk 0:02:52]} 6. Nf3 {[%clk 0:02:59]}  Be6 {[%clk 0:02:52]} 7. c5 {[%clk 0:02:57]}  Bg4 {[%clk 0:02:51]} 8. Bb5 {[%clk 0:02:54]}  e6 {[%clk 0:02:48]} 9. O-O {[%clk 0:02:52]}  Qc7 {[%clk 0:02:46]} 10. h3 {[%clk 0:02:47]}  Bh5 {[%clk 0:02:42]} 11. Qd3 {[%clk 0:02:21]}  Be7 {[%clk 0:02:41]} 12. Ne5 {[%clk 0:02:19]}  Nd7 {[%clk 0:02:36]} 13. Bxc6 {[%clk 0:02:09]}  bxc6 {[%clk 0:02:35]} 14. Bf4 {[%clk 0:01:58]}  Qb7 {[%clk 0:02:27]} 15. b4 {[%clk 0:01:47]}  Nxe5 {[%clk 0:02:25]} 16. Bxe5 {[%clk 0:01:46]}  f6 {[%clk 0:02:25]} 17. Bf4 {[%clk 0:01:34]}  Qxb4 {[%clk 0:02:23]} 18. Rab1 {[%clk 0:01:31]}  Qa5 {[%clk 0:02:23]} 19. Rb7 {[%clk 0:01:30]}  Bg6 {[%clk 0:02:20]} 20. Qg3 {[%clk 0:01:25]}  Kf7 {[%clk 0:02:18]} 21. Bd6 {[%clk 0:01:23]}  Rhe8 {[%clk 0:02:19]} 22. Bxe7 {[%clk 0:01:22]}  Rxe7 {[%clk 0:02:18]} 23. Rxe7+ {[%clk 0:01:17]}  Kxe7 {[%clk 0:02:19]} 24. Qd6+ {[%clk 0:01:16]}  Kf7 {[%clk 0:02:19]} 25. Qd7+ {[%clk 0:01:07]}  Kf8 {[%clk 0:02:16]} 26. Qxc6 {[%clk 0:00:50]}  Re8 {[%clk 0:02:13]} 27. Ne2 {[%clk 0:00:49]}  Bd3 {[%clk 0:02:11]} 28. Qd6+ {[%clk 0:00:47]}  Kf7 {[%clk 0:02:09]} 29. Nf4 {[%clk 0:00:20]}  Bxf1 {[%clk 0:02:08]} 30. Kxf1 {[%clk 0:00:20]}  Re7 {[%clk 0:02:02]} 31. Qd8 {[%clk 0:00:14]}  Qxd8 {[%clk 0:02:01]} 0-1


[Site "https://www.chess.com"]